fUST/lending_fUST_20250315
["ID","MTS","AMOUNT","RATE_DAILY","PERIOD"]
[356169806,1741999840742,-500.0,8.493e-05,2]
[356169807,1741999840751,-500.0,8.493e-05,2]
[356169808,1741999840761,-500.0,8.493e-05,2]
[356169809,1741999840770,-472.77536223,8.493e-05,2]
[356169810,1741999840779,-500.0,8.493e-05,2]
[356169811,1741999840789,-500.0,8.493e-05,2]
[356169812,1741999840798,-500.0,8.493e-05,2]
[356169813,1741999840807,-500.0,8.493e-05,2]
[356169814,1741999840817,-763.94,8.493e-05,2]
[356169815,1741999840826,-500.0,8.493e-05,2]
[356169816,1741999840835,-500.0,8.493e-05,2]
[356169817,1741999840845,-500.0,8.493e-05,2]
[356169818,1741999840855,-789.04,8.493e-05,2]
[356169819,1741999840866,-500.0,8.493e-05,2]
[356169820,1741999840876,-500.0,8.493e-05,2]
[356169821,1741999840885,-709.64,8.493e-05,2]
[356169822,1741999840895,-534.47,8.493e-05,2]
[356169823,1741999840904,-500.0,8.493e-05,2]
[356169824,1741999840914,-500.0,8.493e-05,2]
[356169825,1741999840924,-1685.97,8.493e-05,2]
[356169826,1741999840933,-500.0,8.493e-05,2]
[356169827,1741999840943,-500.0,8.493e-05,2]
[356169828,1741999840953,-500.0,8.493e-05,2]
[356169829,1741999840963,-500.0,8.493e-05,2]
[356169830,1741999840972,-500.0,8.493e-05,2]
[356169831,1741999840982,-500.0,8.493e-05,2]
[356169832,1741999840991,-540.94,8.493e-05,2]
[356169833,1741999841001,-500.0,8.493e-05,2]
[356169834,1741999841011,-500.0,8.493e-05,2]
[356169835,1741999841020,-500.0,8.493e-05,2]
[356169836,1741999841030,-741.97,8.493e-05,2]
[356169837,1741999841040,-500.0,8.493e-05,2]
[356169838,1741999841052,-500.0,8.493e-05,2]
[356169839,1741999841064,-500.0,8.493e-05,2]
[356169840,1741999841074,-500.0,8.493e-05,2]
[356169841,1741999841083,-500.0,8.493e-05,2]
[356169842,1741999841095,-500.0,8.493e-05,2]
[356169843,1741999841106,-501.31,8.493e-05,2]
[356169844,1741999841116,-586.17,8.493e-05,2]
[356169845,1741999841126,-500.0,8.493e-05,2]
[356169846,1741999841138,-500.0,8.493e-05,2]
[356169847,1741999841148,-500.0,8.493e-05,2]
[356169848,1741999841158,-500.0,8.493e-05,2]
[356169849,1741999841168,-500.0,8.493e-05,2]
[356169850,1741999841177,-500.0,8.493e-05,2]
[356169851,1741999841187,-500.0,8.493e-05,2]
[356169852,1741999841197,-1021.52,8.493e-05,2]
[356169853,1741999841207,-500.0,8.493e-05,2]
[356169854,1741999841216,-1113.88,8.493e-05,2]
[356169855,1741999841225,-500.0,8.493e-05,2]
[356169856,1741999841235,-500.0,8.493e-05,2]
[356169857,1741999841245,-500.0,8.493e-05,2]
[356169858,1741999841254,-500.0,8.493e-05,2]
[356169859,1741999841264,-500.0,8.493e-05,2]
[356169860,1741999841273,-500.0,8.493e-05,2]
[356169861,1741999841283,-799.71,8.493e-05,2]
[356169862,1741999841293,-590.31,8.493e-05,2]
[356169863,1741999841302,-500.0,8.493e-05,2]
[356169864,1741999841312,-500.0,8.493e-05,2]
[356169865,1741999841322,-500.0,8.493e-05,2]
[356169866,1741999841332,-500.0,8.493e-05,2]
[356169867,1741999841544,-500.0,8.493e-05,2]
[356169868,1741999841554,-642.72,8.493e-05,2]
[356169869,1741999841563,-503.41,8.493e-05,2]
[356169870,1741999841574,-500.0,8.493e-05,2]
[356169871,1741999841585,-500.0,8.493e-05,2]
[356169872,1741999841596,-500.0,8.493e-05,2]
[356169873,1741999841606,-500.0,8.493e-05,2]
[356169874,1741999841618,-500.0,8.493e-05,2]
[356169875,1741999841627,-500.0,8.493e-05,2]
[356169876,1741999841638,-922.65,8.493e-05,2]
[356169877,1741999841648,-8849.56,8.493e-05,2]
[356169878,1741999841657,-2292.18,8.493e-05,2]
[356169879,1741999841667,-3483.72,8.493e-05,2]
[356169880,1741999841677,-500.0,8.493e-05,2]
[356169881,1741999841686,-500.0,8.493e-05,2]
[356169882,1741999841696,-578.68,8.493e-05,2]
[356169883,1741999841706,-500.0,8.493e-05,2]
[356169884,1741999841715,-500.0,8.493e-05,2]
[356169885,1741999841724,-566.14666353,8.493e-05,2]
[356169886,1741999841733,-7028.82,8.493e-05,2]
[356169887,1741999841743,-500.0,8.493e-05,2]
[356169888,1741999841752,-500.0,8.493e-05,2]
[356169889,1741999841761,-16395.87,8.493e-05,2]
[356169890,1741999841771,-500.0,8.493e-05,2]
[356169891,1741999841780,-500.0,8.493e-05,2]
[356169892,1741999841789,-672.62,8.493e-05,2]
[356169893,1741999841799,-1537.89,8.493e-05,2]
[356169894,1741999841808,-565.1,8.493e-05,2]
[356169895,1741999841818,-630.2,8.493e-05,2]
[356169896,1741999841827,-500.0,8.493e-05,2]
[356169897,1741999841837,-553.16,8.493e-05,2]
[356169898,1741999841846,-950.32,8.493e-05,2]
[356169899,1741999841855,-774.26,8.493e-05,2]
[356169900,1741999841866,-500.0,8.493e-05,2]
[356169901,1741999841876,-1126.96,8.493e-05,2]
[356169902,1741999841885,-500.0,8.493e-05,2]
[356169903,1741999841894,-500.0,8.493e-05,2]
[356169904,1741999841903,-1063.67,8.493e-05,2]
[356169905,1741999841913,-1046.12,8.493e-05,2]
[356169906,1741999841922,-9854.73,8.493e-05,2]
[356169907,1741999841931,-500.0,8.493e-05,2]
[356169908,1741999841940,-500.0,8.493e-05,2]
[356169909,1741999841949,-5040.97,8.493e-05,2]
[356169910,1741999841959,-645.1,8.493e-05,2]
[356169911,1741999841968,-1922.09,8.493e-05,2]
[356169912,1741999841978,-14220.01,8.493e-05,2]
[356169913,1741999841987,-3708.93,8.493e-05,2]
[356169914,1741999841997,-500.0,8.493e-05,2]
[356169915,1741999842006,-500.0,8.493e-05,2]
[356169916,1741999842016,-1145.8,8.493e-05,2]
[356169917,1741999842025,-1391.73,8.493e-05,2]
[356169918,1741999842036,-7425.27,8.493e-05,2]
[356169919,1741999842046,-3506.81,8.493e-05,2]
[356169920,1741999842058,-500.0,8.493e-05,2]
[356169921,1741999842068,-500.0,8.493e-05,2]
[356169922,1741999842078,-1306.45,8.493e-05,2]
[356169923,1741999842088,-13462.42,8.493e-05,2]
[356169924,1741999842099,-725.29,8.493e-05,2]
[356169925,1741999842108,-500.0,8.493e-05,2]
[356169926,1741999842117,-500.0,8.493e-05,2]
[356169927,1741999842127,-500.0,8.493e-05,2]
[356169928,1741999842140,-500.0,8.493e-05,2]
[356169929,1741999842149,-656.02,8.493e-05,2]
[356169930,1741999842159,-2902.75,8.493e-05,2]
[356169931,1741999842168,-821.38,8.493e-05,2]
[356169932,1741999842178,-691.43,8.493e-05,2]
[356169933,1741999842187,-5916.21,8.493e-05,2]
[356169934,1741999842196,-856.3,8.493e-05,2]
[356169935,1741999842206,-554.75,8.493e-05,2]
[356169936,1741999842215,-15992.59,8.493e-05,2]
[356169937,1741999842225,-2689.3,8.493e-05,2]
[356169938,1741999842234,-500.0,8.493e-05,2]
[356169939,1741999842244,-507.79,8.493e-05,2]
[356169940,1741999842254,-500.0,8.493e-05,2]
[356169941,1741999842263,-529.97,8.493e-05,2]
[356169942,1741999842272,-6275.73,8.493e-05,2]
[356169943,1741999842282,-760.58,8.493e-05,2]
[356169944,1741999842291,-235316.23,8.493e-05,2]
[356169945,1741999842301,-222.53599685,8.493e-05,2]
[356169946,1741999842310,-500.0,8.493e-05,2]
[356169947,1741999842320,-500.0,8.493e-05,2]
[356169948,1741999842329,-500.0,8.493e-05,2]
[356169949,1741999842340,-500.0,8.493e-05,2]
[356169950,1741999842349,-500.0,8.493e-05,2]
[356169951,1741999842358,-2095.44,8.493e-05,2]
[356169952,1741999842367,-6398.36,8.493e-05,2]
[356169953,1741999842376,-500.0,8.493e-05,2]
[356169954,1741999842385,-500.0,8.493e-05,2]
[356169955,1741999842395,-341.90968831,8.493e-05,2]
[356169956,1741999842404,-13672.28,8.493e-05,2]
[356169957,1741999842414,-3607.64,8.493e-05,2]
[356169958,1741999842426,-500.0,8.493e-05,2]
[356169959,1741999842435,-5097.61,8.493e-05,2]
[356169960,1741999842444,-680.76,8.493e-05,2]
[356169961,1741999842453,-1019.2,8.493e-05,2]
[356169962,1741999842462,-500.0,8.493e-05,2]
[356169963,1741999842472,-500.0,8.493e-05,2]
[356169964,1741999842481,-1550.35,8.493e-05,2]
[356169965,1741999842491,-660.49,8.493e-05,2]
[356169966,1741999842500,-500.0,8.493e-05,2]
[356169968,1741999842509,-500.0,8.493e-05,2]
[356169969,1741999842519,-10616.29,8.493e-05,2]
[356169970,1741999842528,-1818.82,8.493e-05,2]
[356169971,1741999842537,-500.0,8.493e-05,2]
[356169972,1741999842547,-500.0,8.493e-05,2]
[356169973,1741999842557,-500.0,8.493e-05,2]
[356169974,1741999842566,-1785.59,8.493e-05,2]
[356169975,1741999842576,-509.16483294,8.493e-05,2]
[356169976,1741999842585,-500.0,8.52e-05,2]
[356169977,1741999842595,-500.0,8.548e-05,2]
[356169978,1741999842604,-828.89670787,8.559e-05,2]
[356169979,1741999842615,-500.0,8.575e-05,2]
[356169980,1741999842624,-500.0,8.603e-05,2]
[356169981,1741999842633,-500.0,8.63e-05,2]
[356169982,1741999842643,-500.0,8.657e-05,2]
[356169983,1741999842652,-786.98030775,8.685e-05,2]
[356169984,1741999842662,-500.0,8.767e-05,2]
[356169985,1741999842671,-500.0,8.767e-05,2]
[356169986,1741999842681,-500.0,8.767e-05,2]
[356169987,1741999842690,-500.0,8.767e-05,2]
[356169988,1741999842700,-500.0,8.767e-05,2]
[356169990,1741999842709,-500.0,8.767e-05,2]
[356169991,1741999842718,-500.0,8.767e-05,2]
[356169992,1741999842728,-500.0,8.767e-05,2]
[356169993,1741999842737,-500.0,8.767e-05,2]
[356169994,1741999842746,-500.0,8.767e-05,2]
[356169995,1741999842755,-507.56381159,8.767e-05,2]
[356169996,1741999842764,-500.0,8.767e-05,2]
[356169997,1741999842774,-500.0,8.767e-05,2]
[356169998,1741999842783,-500.0,8.767e-05,2]
[356169999,1741999842793,-500.0,8.767e-05,2]
[356170000,1741999842802,-500.0,8.767e-05,2]
[356170001,1741999842812,-763.94,8.767e-05,2]
[356170002,1741999842821,-500.0,8.767e-05,2]
[356170003,1741999842831,-500.0,8.767e-05,2]
[356170004,1741999842840,-789.04,8.767e-05,2]
[356170005,1741999842850,-500.0,8.767e-05,2]
[356170006,1741999842861,-500.0,8.767e-05,2]
[356170007,1741999842870,-709.64,8.767e-05,2]
[356170008,1741999842880,-534.47,8.767e-05,2]
[356170009,1741999842889,-500.0,8.767e-05,2]
[356170010,1741999842899,-500.0,8.767e-05,2]
[356170011,1741999842909,-1685.97,8.767e-05,2]
[356170012,1741999842918,-500.0,8.767e-05,2]
[356170013,1741999842928,-500.0,8.767e-05,2]
[356170014,1741999842937,-500.0,8.767e-05,2]
[356170015,1741999842947,-500.0,8.767e-05,2]
[356170017,1741999842956,-500.0,8.767e-05,2]
[356170018,1741999842966,-500.0,8.767e-05,2]
[356170019,1741999842976,-540.94,8.767e-05,2]
[356170020,1741999842986,-500.0,8.767e-05,2]
[356170021,1741999842995,-500.0,8.767e-05,2]
[356170022,1741999843005,-741.97,8.767e-05,2]
[356170023,1741999843014,-500.0,8.767e-05,2]
[356170024,1741999843024,-500.0,8.767e-05,2]
[356170025,1741999843036,-500.0,8.767e-05,2]
[356170026,1741999843051,-500.0,8.767e-05,2]
[356170027,1741999843065,-500.0,8.767e-05,2]
[356170028,1741999843075,-500.0,8.767e-05,2]
[356170029,1741999843085,-501.31,8.767e-05,2]
[356170030,1741999843094,-586.17,8.767e-05,2]
[356170031,1741999843105,-500.0,8.767e-05,2]
[356170032,1741999843116,-500.0,8.767e-05,2]
[356170033,1741999843126,-500.0,8.767e-05,2]
[356170034,1741999843137,-500.0,8.767e-05,2]
[356170035,1741999843147,-500.0,8.767e-05,2]
[356170036,1741999843157,-500.0,8.767e-05,2]
[356170037,1741999843167,-500.0,8.767e-05,2]
[356170038,1741999843178,-1021.52,8.767e-05,2]
[356170039,1741999843188,-500.0,8.767e-05,2]
[356170040,1741999843198,-1113.88,8.767e-05,2]
[356170041,1741999843208,-500.0,8.767e-05,2]
[356170042,1741999843218,-500.0,8.767e-05,2]
[356170043,1741999843228,-500.0,8.767e-05,2]
[356170044,1741999843238,-500.0,8.767e-05,2]
[356170045,1741999843249,-500.0,8.767e-05,2]
[356170046,1741999843258,-500.0,8.767e-05,2]
[356170047,1741999843268,-799.71,8.767e-05,2]
[356170048,1741999843279,-590.31,8.767e-05,2]
[356170049,1741999843288,-444.02311574,8.767e-05,2]
[356170050,1741999843298,-500.0,8.767e-05,2]
[356170051,1741999843309,-642.72,8.767e-05,2]
[356170052,1741999843319,-503.41,8.767e-05,2]
[356170053,1741999843329,-500.0,8.767e-05,2]
[356170054,1741999843339,-500.0,8.767e-05,2]
[356170055,1741999843348,-500.0,8.767e-05,2]
[356170056,1741999843359,-922.65,8.767e-05,2]
[356170057,1741999843369,-8849.56,8.767e-05,2]
[356170058,1741999843378,-2292.18,8.767e-05,2]
[356170059,1741999843388,-3483.72,8.767e-05,2]
[356170060,1741999843399,-578.68,8.767e-05,2]
[356170061,1741999843409,-500.0,8.767e-05,2]
[356170062,1741999843419,-500.0,8.767e-05,2]
[356170063,1741999843428,-7028.82,8.767e-05,2]
[356170064,1741999843438,-500.0,8.767e-05,2]
[356170065,1741999843447,-500.0,8.767e-05,2]
[356170066,1741999843457,-16395.87,8.767e-05,2]
[356170067,1741999843467,-500.0,8.767e-05,2]
[356170068,1741999843477,-500.0,8.767e-05,2]
[356170069,1741999843487,-672.62,8.767e-05,2]
[356170070,1741999843496,-1537.89,8.767e-05,2]
[356170071,1741999843506,-565.1,8.767e-05,2]
[356170072,1741999843515,-630.2,8.767e-05,2]
[356170073,1741999843525,-553.16,8.767e-05,2]
[356170074,1741999843534,-500.0,8.767e-05,2]
[356170075,1741999843544,-774.26,8.767e-05,2]
[356170076,1741999843553,-950.32,8.767e-05,2]
[356170077,1741999843563,-500.0,8.767e-05,2]
[356170078,1741999843572,-1126.96,8.767e-05,2]
[356170079,1741999843582,-500.0,8.767e-05,2]
[356170080,1741999843592,-500.0,8.767e-05,2]
[356170081,1741999843601,-1063.67,8.767e-05,2]
[356170082,1741999843612,-1046.12,8.767e-05,2]
[356170083,1741999843621,-9854.73,8.767e-05,2]
[356170084,1741999843631,-500.0,8.767e-05,2]
[356170085,1741999843641,-500.0,8.767e-05,2]
[356170086,1741999843651,-5040.97,8.767e-05,2]
[356170087,1741999843660,-645.1,8.767e-05,2]
[356170088,1741999843670,-1922.09,8.767e-05,2]
[356170089,1741999843679,-14220.01,8.767e-05,2]
[356170090,1741999843689,-3708.93,8.767e-05,2]
[356170091,1741999843699,-500.0,8.767e-05,2]
[356170092,1741999843708,-1145.8,8.767e-05,2]
[356170093,1741999843718,-500.0,8.767e-05,2]
[356170094,1741999843727,-1391.73,8.767e-05,2]
[356170095,1741999843737,-7425.27,8.767e-05,2]
[356170096,1741999843746,-3506.81,8.767e-05,2]
[356170097,1741999843755,-500.0,8.767e-05,2]
[356170098,1741999843765,-500.0,8.767e-05,2]
[356170099,1741999843775,-1306.45,8.767e-05,2]
[356170100,1741999843784,-13462.42,8.767e-05,2]
[356170101,1741999843793,-725.29,8.767e-05,2]
[356170102,1741999843803,-500.0,8.767e-05,2]
[356170103,1741999843812,-500.0,8.767e-05,2]
[356170104,1741999843822,-500.0,8.767e-05,2]
[356170105,1741999843831,-656.02,8.767e-05,2]
[356170106,1741999843840,-2902.75,8.767e-05,2]
[356170107,1741999843850,-821.38,8.767e-05,2]
[356170108,1741999843859,-691.43,8.767e-05,2]
[356170109,1741999843868,-5916.21,8.767e-05,2]
[356170110,1741999843878,-856.3,8.767e-05,2]
[356170111,1741999843888,-554.75,8.767e-05,2]
[356170112,1741999843898,-15992.59,8.767e-05,2]
[356170113,1741999843908,-2689.3,8.767e-05,2]
[356170114,1741999843917,-500.0,8.767e-05,2]
[356170115,1741999843926,-507.79,8.767e-05,2]
[356170116,1741999843936,-500.0,8.767e-05,2]
[356170117,1741999843945,-529.97,8.767e-05,2]
[356170118,1741999843954,-6275.73,8.767e-05,2]
[356170119,1741999843963,-760.58,8.767e-05,2]
[356170120,1741999843973,-70673.15082081,8.767e-05,2]
[356170121,1741999843993,-164643.07917919,8.767e-05,2]
[356170122,1741999844003,-319.1,8.767e-05,2]
[356170123,1741999844013,-500.0,8.767e-05,2]
[356170124,1741999844022,-452.95351253,8.767e-05,2]
[356170125,1741999844032,-500.0,8.767e-05,2]
[356170126,1741999844041,-596.90529661,8.767e-05,2]
[356170128,1741999844051,-2095.44,8.767e-05,2]
[356170129,1741999844065,-6398.36,8.767e-05,2]
[356170132,1741999844074,-500.0,8.767e-05,2]
[356170133,1741999844084,-500.0,8.767e-05,2]
[356170135,1741999844095,-13672.28,8.767e-05,2]
[356170136,1741999844105,-3607.64,8.767e-05,2]
[356170137,1741999844116,-500.0,8.767e-05,2]
[356170138,1741999844126,-5097.61,8.767e-05,2]
[356170139,1741999844140,-680.76,8.767e-05,2]
[356170140,1741999844150,-1019.2,8.767e-05,2]
[356170141,1741999844160,-500.0,8.767e-05,2]
[356170142,1741999844170,-500.0,8.767e-05,2]
[356170143,1741999844179,-1550.35,8.767e-05,2]
[356170144,1741999844189,-660.49,8.767e-05,2]
[356170145,1741999844199,-500.0,8.767e-05,2]
[356170146,1741999844208,-500.0,8.767e-05,2]
[356170147,1741999844218,-10616.29,8.767e-05,2]
[356170148,1741999844227,-1818.82,8.767e-05,2]
[356170149,1741999844236,-500.0,8.767e-05,2]
[356170150,1741999844246,-1785.59,8.767e-05,2]
[356170151,1741999844256,-420.0,8.819e-05,2]
[356170152,1741999844265,-828.89670787,8.993e-05,2]
[356170153,1741999844275,-609.60249117,9e-05,2]
[356170154,1741999844284,-500.0,9.041e-05,2]
[356170155,1741999844294,-500.0,9.041e-05,2]
[356170156,1741999844303,-500.0,9.041e-05,2]
[356170157,1741999844313,-500.0,9.041e-05,2]
[356170158,1741999844323,-500.0,9.041e-05,2]
[356170159,1741999844333,-500.0,9.041e-05,2]
[356170160,1741999844342,-500.0,9.041e-05,2]
[356170161,1741999844352,-266.32725884,9.041e-05,2]
[356170162,1741999844362,-500.0,9.041e-05,2]
[356170163,1741999844371,-500.0,9.041e-05,2]
[356170164,1741999844381,-500.0,9.041e-05,2]
[356170165,1741999844390,-500.0,9.041e-05,2]
[356170166,1741999844400,-500.0,9.041e-05,2]
[356170167,1741999844409,-500.0,9.041e-05,2]
[356170168,1741999844419,-500.0,9.041e-05,2]
[356170169,1741999844429,-763.94,9.041e-05,2]
[356170170,1741999844439,-500.0,9.041e-05,2]
[356170171,1741999844447,-500.0,9.041e-05,2]
[356170172,1741999844457,-789.04,9.041e-05,2]
[356170173,1741999844466,-500.0,9.041e-05,2]
[356170174,1741999844475,-500.0,9.041e-05,2]
[356170175,1741999844485,-709.64,9.041e-05,2]
[356170176,1741999844495,-534.47,9.041e-05,2]
[356170177,1741999844504,-500.0,9.041e-05,2]
[356170178,1741999844513,-500.0,9.041e-05,2]
[356170179,1741999844522,-1685.97,9.041e-05,2]
[356170180,1741999844532,-500.0,9.041e-05,2]
[356170181,1741999844541,-224.63526645,9.041e-05,2]
[356170182,1741999844550,-500.0,9.041e-05,2]
[356170183,1741999844560,-500.0,9.041e-05,2]
[356170184,1741999844569,-500.0,9.041e-05,2]
[356170185,1741999844578,-500.0,9.041e-05,2]
[356170186,1741999844589,-540.94,9.041e-05,2]
[356170187,1741999844598,-500.0,9.041e-05,2]
[356170188,1741999844607,-500.0,9.041e-05,2]
[356170189,1741999844617,-741.97,9.041e-05,2]
[356170190,1741999844626,-500.0,9.041e-05,2]
[356170191,1741999844635,-500.0,9.041e-05,2]
[356170192,1741999844644,-500.0,9.041e-05,2]
[356170193,1741999844653,-500.0,9.041e-05,2]
[356170194,1741999844662,-500.0,9.041e-05,2]
[356170195,1741999844672,-500.0,9.041e-05,2]
[356170196,1741999844681,-501.31,9.041e-05,2]
[356170197,1741999844690,-586.17,9.041e-05,2]
[356170198,1741999844699,-500.0,9.041e-05,2]
[356170199,1741999844708,-500.0,9.041e-05,2]
[356170200,1741999844717,-500.0,9.041e-05,2]
[356170201,1741999844726,-645.00000001,9.041e-05,2]
[356170202,1741999844736,-500.0,9.041e-05,2]
[356170203,1741999844745,-500.0,9.041e-05,2]
[356170204,1741999844754,-500.0,9.041e-05,2]
[356170205,1741999844763,-1021.52,9.041e-05,2]
[356170206,1741999844772,-500.0,9.041e-05,2]
[356170207,1741999844782,-1113.88,9.041e-05,2]
[356170208,1741999844791,-500.0,9.041e-05,2]
[356170209,1741999844800,-500.0,9.041e-05,2]
[356170210,1741999844809,-500.0,9.041e-05,2]
[356170211,1741999844818,-500.0,9.041e-05,2]
[356170212,1741999844827,-799.71,9.041e-05,2]
[356170213,1741999844836,-590.31,9.041e-05,2]
[356170214,1741999844845,-500.0,9.041e-05,2]
[356170215,1741999844854,-642.72,9.041e-05,2]
[356170216,1741999844864,-503.41,9.041e-05,2]
[356170217,1741999844873,-500.0,9.041e-05,2]
[356170218,1741999844882,-500.0,9.041e-05,2]
[356170219,1741999844890,-500.0,9.041e-05,2]
[356170220,1741999844900,-922.65,9.041e-05,2]
[356170221,1741999844909,-8849.56,9.041e-05,2]
[356170222,1741999844918,-2292.18,9.041e-05,2]
[356170223,1741999844927,-3483.72,9.041e-05,2]
[356170224,1741999844936,-578.68,9.041e-05,2]
[356170225,1741999844945,-500.0,9.041e-05,2]
[356170226,1741999844954,-500.0,9.041e-05,2]
[356170227,1741999844964,-7028.82,9.041e-05,2]
[356170228,1741999844973,-500.0,9.041e-05,2]
[356170229,1741999844983,-500.0,9.041e-05,2]
[356170230,1741999844992,-16395.87,9.041e-05,2]
[356170231,1741999845001,-500.0,9.041e-05,2]
[356170232,1741999845011,-500.0,9.041e-05,2]
[356170233,1741999845020,-672.62,9.041e-05,2]
[356170234,1741999845030,-1537.89,9.041e-05,2]
[356170235,1741999845039,-565.1,9.041e-05,2]
[356170236,1741999845049,-630.2,9.041e-05,2]
[356170237,1741999845061,-553.16,9.041e-05,2]
[356170238,1741999845070,-500.0,9.041e-05,2]
[356170239,1741999845079,-774.26,9.041e-05,2]
[356170240,1741999845088,-950.32,9.041e-05,2]
[356170241,1741999845099,-500.0,9.041e-05,2]
[356170242,1741999845110,-1126.96,9.041e-05,2]
[356170243,1741999845119,-500.0,9.041e-05,2]
[356170244,1741999845129,-500.0,9.041e-05,2]
[356170245,1741999845140,-1063.67,9.041e-05,2]
[356170246,1741999845150,-1046.12,9.041e-05,2]
[356170247,1741999845160,-9854.73,9.041e-05,2]
[356170248,1741999845169,-500.0,9.041e-05,2]
[356170249,1741999845179,-500.0,9.041e-05,2]
[356170250,1741999845188,-5040.97,9.041e-05,2]
[356170251,1741999845197,-645.1,9.041e-05,2]
[356170252,1741999845206,-1922.09,9.041e-05,2]
[356170253,1741999845215,-14220.01,9.041e-05,2]
[356170254,1741999845224,-3708.93,9.041e-05,2]
[356170255,1741999845233,-500.0,9.041e-05,2]
[356170256,1741999845242,-1391.73,9.041e-05,2]
[356170257,1741999845251,-1145.8,9.041e-05,2]
[356170258,1741999845261,-7425.27,9.041e-05,2]
[356170259,1741999845270,-3506.81,9.041e-05,2]
[356170260,1741999845279,-500.0,9.041e-05,2]
[356170261,1741999845288,-500.0,9.041e-05,2]
[356170262,1741999845297,-1306.45,9.041e-05,2]
[356170263,1741999845306,-13462.42,9.041e-05,2]
[356170264,1741999845315,-725.29,9.041e-05,2]
[356170265,1741999845324,-500.0,9.041e-05,2]
[356170266,1741999845333,-500.0,9.041e-05,2]
[356170267,1741999845342,-500.0,9.041e-05,2]
[356170268,1741999845351,-2902.75,9.041e-05,2]
[356170269,1741999845360,-656.02,9.041e-05,2]
[356170270,1741999845369,-821.38,9.041e-05,2]
[356170271,1741999845378,-691.43,9.041e-05,2]
[356170272,1741999845387,-5916.21,9.041e-05,2]
[356170273,1741999845396,-856.3,9.041e-05,2]
[356170274,1741999845405,-554.75,9.041e-05,2]
[356170275,1741999845414,-15992.59,9.041e-05,2]
[356170276,1741999845424,-2689.3,9.041e-05,2]
[356170277,1741999845433,-500.0,9.041e-05,2]
[356170278,1741999845442,-507.79,9.041e-05,2]
[356170279,1741999845451,-500.0,9.041e-05,2]
[356170280,1741999845460,-529.97,9.041e-05,2]
[356170281,1741999845470,-6275.73,9.041e-05,2]
[356170282,1741999845479,-760.58,9.041e-05,2]
[356170283,1741999845496,-148613.87707189,9.041e-05,2]
[356170284,1741999845515,-8815.20961164,9.041e-05,2]
[356170285,1741999846254,-77887.14331647,9.041e-05,2]
[356170286,1741999846264,-2095.44,9.041e-05,2]
[356170287,1741999846273,-6000.9252609,9.041e-05,2]
[356170299,1741999846516,-397.4347391,9.041e-05,2]
[356170300,1741999846526,-500.0,9.041e-05,2]
[356170301,1741999846537,-500.0,9.041e-05,2]
[356170302,1741999846547,-290.76323259,9.041e-05,2]
[356170304,1741999940444,500.0,3e-07,2]
[356170308,1742000022701,500.0,3e-07,2]
[356170309,1742000026136,500.0,3e-07,2]
[356170310,1742000029260,500.0,3e-07,2]
[356170314,1742000172239,200.0,8.118e-05,120]
[356170336,1742000750133,-300.0,8.117e-05,2]
[356170337,1742000750153,-143.3887611,8.118e-05,2]
[356170410,1742001038183,-300.0,8.117e-05,2]
[356170411,1742001038194,-24109.49694539,8.118e-05,2]
[356170412,1742001038204,-457.51108946,8.118e-05,2]
[356170413,1742001038214,-429.38994123,8.118e-05,2]
[356170414,1742001038225,-186.81872508,8.118e-05,2]
[356170415,1742001038235,-170.25776262,8.118e-05,2]
[356170416,1742001038244,-222000.0,8.119e-05,2]
[356170417,1742001038254,-500.0,8.193e-05,2]
[356170418,1742001038263,-500.0,8.193e-05,2]
[356170419,1742001038273,-500.0,8.193e-05,2]
[356170420,1742001038282,-500.0,8.193e-05,2]
[356170421,1742001038292,-500.0,8.193e-05,2]
[356170422,1742001038302,-500.0,8.193e-05,2]
[356170423,1742001038312,-500.0,8.193e-05,2]